Workbook

Sheet 7-10
A1: СОГЛАСОВАНО | O1: УТВЕРЖДЕНО
O2: ООО "КРЕПЫШ"
O3: _______________________Ефремов В.Ю.
A6: Меню для организации питания детей возрасте от 7 до 10 лет в образовательных учреждениях Мензелинского района РТ на 2 полугодие 2022-2023 учебный год.
A8: 1 день, 1 неделя
A9: № рецептуры | B9: Прием пищи, наименование блюда | C9: Масса | D9: Пищевые вещества | G9: Энергетическая ценность | H9: Витамины | M9: Минеральные вещества
D10: Белки | E10: Жиры | F10: Углеводы | H10: B1 | I10: B2 | J10: A | K10: D | L10: C | M10: Na | N10: K | O10: Ca | P10: Mg | Q10: P | R10: Fe | S10: I | T10: Se | U10: F
C11: г | D11: г | E11: г | F11: г | G11: ккал | H11: мг | I11: мг | J11: мкг рет.экв | K11: мкг | L11: мг | M11: мг | N11: мг | O11: мг | P11: мг | Q11: мг | R11: мг | S11: мкг | T11: мкг | U11: мкг
B12: Понедельник, 1 неделя
B13: Горячий завтрак | C13: 7-10
A14: 54-7з-2020 | B14: Салат из белокочанной капусты с растительным маслом | C14: 60 | D14: 1.5 | E14: 3.1 | F14: 6.2 | G14: 85.8 | H14: 0.03 | I14: 0.04 | J14: 122.25 | K14: 0 | L14: 34.78 | M14: 88.69 | N14: 247.73 | O14: 40.39 | P14: 15.18 | Q14: 30.31 | R14: 0.55 | S14: 10.73 | T14: 0.26 | U14: 12.66
A15: 100 | B15: Суп картофельный с вермишелью | C15: 200 | D15: 9.2 | E15: 7.6 | F15: 16.2 | G15: 94.4 | H15: 0.1 | I15: 0 | J15: 0.2 | K15: 0 | L15: 5.3 | M15: 0 | N15: 0 | O15: 19.2 | P15: 18.7 | Q15: 46.1 | R15: 0.9 | S15: 0 | T15: 0 | U15: 0
A16: № Т/К 399 | B16: Блины фаршированные сгущенным молоком П/Ф (70гр) 2 шт | C16: 140 | D16: 5.6 | E16: 7.7 | F16: 37.8 | G16: 245 | H16: 0.16 | I16: 0 | J16: 0 | K16: 0 | L16: 0 | M16: 0 | N16: 0 | O16: 196.9 | P16: 38.48 | Q16: 85 | R16: 0.96 | S16: 0 | T16: 0 | U16: 0
A17: 54-4гн-2020 | B17: Чай с молоком и сахаром | C17: 200 | D17: 1.6 | E17: 1.1 | F17: 8.6 | G17: 50.9 | H17: 0.01 | I17: 0.07 | J17: 6.9 | K17: 0 | L17: 0.3 | M17: 19.68 | N17: 81.35 | O17: 103.48 | P17: 9.92 | Q17: 46.33 | R17: 0.78 | S17: 4.5 | T17: 0.88 | U17: 10
A18: Пром. | B18: Хлеб ржаной | C18: 20 | D18: 1.3 | E18: 0.2 | F18: 6.7 | G18: 34.2 | H18: 0.04 | I18: 0.02 | J18: 0 | K18: 0 | L18: 0 | M18: 122 | N18: 49 | O18: 7 | P18: 9.4 | Q18: 31.6 | R18: 0.78 | S18: 0 | T18: 6.18 | U18: 0
B19: Итого за Завтрак | C19: =SUM(C14:C18) -> 620 | D19: 19.2 | E19: 19.7 | F19: 75.5 | G19: 510.3 | H19: 0.34 | I19: 0.13 | J19: 129.35 | K19: 0 | L19: 40.38 | M19: 230.37 | N19: 378.08 | O19: 366.97 | P19: 91.68 | Q19: 239.34 | R19: 3.97 | S19: 15.23 | T19: 7.32 | U19: 22.66
B20: Итого за день | C20: =C19 -> 620 | D20: =D19 -> 19.2 | E20: =E19 -> 19.7 | F20: 75.5 | G20: 510.3 | H20: 0.34 | I20: 0.13 | J20: 129.35 | K20: 0 | L20: 40.38 | M20: 230.37 | N20: 378.08 | O20: 366.97 | P20: 91.68 | Q20: 239.34 | R20: 3.97 | S20: 15.23 | T20: 7.32 | U20: 22.66
A22: 2 день, 1 неделя
A23: № рецептуры | B23: Прием пищи, наименование блюда | C23: Масса | D23: Пищевые вещества | G23: Энергетическая ценность | H23: Витамины | M23: Минеральные вещества
D24: Белки | E24: Жиры | F24: Углеводы | H24: B1 | I24: B2 | J24: A | K24: D | L24: C | M24: Na | N24: K | O24: Ca | P24: Mg | Q24: P | R24: Fe | S24: I | T24: Se | U24: F
C25: г | D25: г | E25: г | F25: г | G25: ккал | H25: мг | I25: мг | J25: мкг рет.экв | K25: мкг | L25: мг | M25: мг | N25: мг | O25: мг | P25: мг | Q25: мг | R25: мг | S25: мкг | T25: мкг | U25: мкг
B26: Вторник, 1 неделя
B27: Горячий завтрак | C27: 7-10
A28: №Т/К 41 | B28: Салат из моркови с сахаром и растительным маслом | C28: 60 | D28: 0.5 | E28: 6.1 | F28: 4.3 | G28: 74.3 | H28: 0.03 | I28: 0.03 | J28: 732.9 | K28: 0 | L28: 3.63 | M28: 89.79 | N28: 123.26 | O28: 13.5 | P28: 15.57 | Q28: 22.38 | R28: 0.66 | S28: 10.19 | T28: 0.09 | U28: 21.57
A29: 54-6г-2020 | B29: Рис отварной | C29: 150 | D29: 3.6 | E29: 4.8 | F29: 36.4 | G29: 203.5 | H29: 0.03 | I29: 0.02 | J29: 18.36 | K29: 0.09 | L29: 0 | M29: 152.8 | N29: 46.55 | O29: 106.65 | P29: 23.59 | Q29: 72.57 | R29: 0.49 | S29: 20.76 | T29: 7.24 | U29: 27.19
A30: №Т/К 272 | B30: Котлета мясная с соусом | C30: 65/35 | D30: 11.4 | E30: 8.3 | F30: 12.4 | G30: 179.2 | H30: 0 | I30: 0 | J30: 0.1 | K30: 0 | L30: 1.8 | M30: 0 | N30: 0 | O30: 18.9 | P30: 22.1 | Q30: 115.5 | R30: 1.9 | S30: 0 | T30: 0 | U30: 0
A31: №Т/К 436 | B31: Напиток апельсиновый | C31: 200 | D31: 0.2 | E31: 0 | F31: 13 | G31: 49 | H31: 0 | I31: 0 | J31: 0 | K31: 0 | L31: 4 | M31: 0 | N31: 0 | O31: 13.5 | P31: 3.8 | Q31: 3.5 | R31: 0.1 | S31: 0 | T31: 0 | U31: 0
A32: Пром. | B32: Хлеб пшеничный | C32: 20 | D32: 1.52 | E32: 0.16 | F32: 9.84 | G32: 46.9 | H32: 0.02 | I32: 0.01 | J32: 0 | K32: 0 | L32: 0 | M32: 100 | N32: 19 | O32: 4 | P32: 3 | Q32: 13 | R32: 0.2 | S32: 0.64 | T32: 1.2 | U32: 2.9
A33: Пром. | B33: Хлеб ржаной | C33: 20 | D33: 1.3 | E33: 0.2 | F33: 6.7 | G33: 34.2 | H33: 0.04 | I33: 0.02 | J33: 0 | K33: 0 | L33: 0 | M33: 122 | N33: 49 | O33: 7 | P33: 9.4 | Q33: 31.6 | R33: 0.78 | S33: 0 | T33: 6.18 | U33: 0
B34: Итого за Завтрак | C34: 550 | D34: =SUM(D28:D33) -> 18.52 | E34: =SUM(E28:E33) -> 19.56 | F34: 82.64 | G34: 587.1 | H34: 0.12 | I34: 0.08 | J34: 751.36 | K34: 0.09 | L34: 9.43 | M34: 464.59 | N34: 237.81 | O34: 163.55 | P34: 77.46 | Q34: 258.55 | R34: 4.13 | S34: 31.59 | T34: 14.71 | U34: 51.66
B35: Итого за день | C35: =C34 -> 550 | D35: =D34 -> 18.52 | E35: 19.56 | F35: 82.64 | G35: 587.1 | H35: 0.12 | I35: 0.08 | J35: 751.36 | K35: 0.09 | L35: 9.43 | M35: 464.59 | N35: 237.81 | O35: 163.55 | P35: 77.46 | Q35: 258.55 | R35: 4.13 | S35: 31.59 | T35: 14.71 | U35: 51.66
A37: 3 день, 1 неделя
A38: № рецептуры | B38: Прием пищи, наименование блюда | C38: Масса | D38: Пищевые вещества | G38: Энергетическая ценность | H38: Витамины | M38: Минеральные вещества
D39: Белки | E39: Жиры | F39: Углеводы | H39: B1 | I39: B2 | J39: A | K39: D | L39: C | M39: Na | N39: K | O39: Ca | P39: Mg | Q39: P | R39: Fe | S39: I | T39: Se | U39: F
C40: г | D40: г | E40: г | F40: г | G40: ккал | H40: мг | I40: мг | J40: мкг рет.экв | K40: мкг | L40: мг | M40: мг | N40: мг | O40: мг | P40: мг | Q40: мг | R40: мг | S40: мкг | T40: мкг | U40: мкг
B41: Среда, 1 неделя
B42: Горячий завтрак | C42: 7-10
A43: 54-13з-2020 | B43: Салат из свеклы отварной с растительным маслом | C43: 60 | D43: 0.8 | E43: 2.7 | F43: 4.6 | G43: 45.6 | H43: 0.01 | I43: 0.02 | J43: 0.68 | K43: 0 | L43: 2.28 | M43: 78.77 | N43: 136.27 | O43: 19.21 | P43: 10.95 | Q43: 21.51 | R43: 0.7 | S43: 11.99 | T43: 0.35 | U43: 11.4
A44: 54-1г-2020 | B44: Макароны отварные | C44: 150 | D44: 5.3 | E44: 4.9 | F44: 32.8 | G44: 196.8 | H44: 0.06 | I44: 0.02 | J44: 18.36 | K44: 0.09 | L44: 0 | M44: 149.04 | N44: 53.8 | O44: 105.83 | P44: 7.19 | Q44: 40.7 | R44: 0.73 | S44: 20.77 | T44: 0.06 | U44: 11.92
A45: №243 | B45: Сосиски говяжьи отварные, п/ф (2 шт) | C45: 100 | D45: 8.6 | E45: 9.27 | F45: 6.5 | G45: 202.15 | H45: 0 | I45: 0 | J45: 0.08 | K45: 0.01 | L45: 0 | M45: 0 | N45: 0 | O45: 7.44 | P45: 15.51 | Q45: 137.39 | R45: 1.74 | S45: 0 | T45: 0 | U45: 0
A46: 54-3гн-2020 | B46: Чай с лимоном и сахаром | C46: 207 | D46: 0.2 | E46: 0.1 | F46: 6.6 | G46: 27.9 | H46: 0 | I46: 0.01 | J46: 0.38 | K46: 0 | L46: 1.16 | M46: 1.26 | N46: 30.23 | O46: 67 | P46: 4.56 | Q46: 8.52 | R46: 0.77 | S46: 0.01 | T46: 0.02 | U46: 0.7
A47: 54-1з | B47: Сыр порциями | C47: 15 | D47: 1.48 | E47: 2.42 | F47: 0 | G47: 33.7 | H47: 0 | I47: 0.04 | J47: 23.4 | K47: 0.14 | L47: 0 | M47: 92 | N47: 11 | O47: 116 | P47: 5 | Q47: 65 | R47: 0.1 | S47: 0 | T47: 1.9 | U47: 0
A48: Пром. | B48: Хлеб ржаной | C48: 20 | D48: 1.3 | E48: 0.2 | F48: 6.7 | G48: 34.2 | H48: 0.04 | I48: 0.02 | J48: 0 | K48: 0 | L48: 0 | M48: 122 | N48: 49 | O48: 7 | P48: 9.4 | Q48: 31.6 | R48: 0.78 | S48: 0 | T48: 6.18 | U48: 0
A49: Пром. | B49: Хлеб пшеничный | C49: 20 | D49: 1.52 | E49: 0.16 | F49: 9.84 | G49: 46.9 | H49: 0.02 | I49: 0.01 | J49: 0 | K49: 0 | L49: 0 | M49: 100 | N49: 19 | O49: 4 | P49: 3 | Q49: 13 | R49: 0.2 | S49: 0.64 | T49: 1.2 | U49: 2.9
B50: Итого за Завтрак | C50: =SUM(C43:C49) -> 572 | D50: =SUM(D43:D49) -> 19.2 | E50: =SUM(E43:E49) -> 19.75 | F50: =SUM(F43:F49) -> 67.04 | G50: 587.25 | H50: 0.13 | I50: 0.12 | J50: 42.9 | K50: 0.24 | L50: 3.44 | M50: 543.07 | N50: 299.3 | O50: 326.48 | P50: 55.61 | Q50: 317.72 | R50: 5.02 | S50: 33.41 | T50: 9.71 | U50: 26.92
B51: Итого за день | C51: =C50 -> 572 | D51: =D50 -> 19.2 | E51: =E50 -> 19.75 | F51: 67.04 | G51: 587.25 | H51: 0.13 | I51: 0.12 | J51: 42.9 | K51: 0.24 | L51: 3.44 | M51: 543.07 | N51: 299.3 | O51: 326.48 | P51: 55.61 | Q51: 317.72 | R51: 5.02 | S51: 33.41 | T51: 9.71 | U51: 26.92
A53: 4 день, 1 неделя
A54: № рецептуры | B54: Прием пищи, наименование блюда | C54: Масса | D54: Пищевые вещества | G54: Энергетическая ценность | H54: Витамины | M54: Минеральные вещества
D55: Белки | E55: Жиры | F55: Углеводы | H55: B1 | I55: B2 | J55: A | K55: D | L55: C | M55: Na | N55: K | O55: Ca | P55: Mg | Q55: P | R55: Fe | S55: I | T55: Se | U55: F
C56: г | D56: г | E56: г | F56: г | G56: ккал | H56: мг | I56: мг | J56: мкг рет.экв | K56: мкг | L56: мг | M56: мг | N56: мг | O56: мг | P56: мг | Q56: мг | R56: мг | S56: мкг | T56: мкг | U56: мкг
B57: Четверг, 1 неделя
B58: Горячий завтрак | C58: 7-10
A59: 54-9з-2020 | B59: Салат из белокочанной капусты с морковью и яблоками с растительным маслом | C59: 60 | D59: 0.8 | E59: 6.1 | F59: 3.6 | G59: 72.5 | H59: 0.02 | I59: 0.02 | J59: 241.63 | K59: 0 | L59: 17.32 | M59: 87.51 | N59: 160.14 | O59: 23.5 | P59: 11.17 | Q59: 18.8 | R59: 0.56 | S59: 9.87 | T59: 0.15 | U59: 10.98
A60: 54-11г-2020 | B60: Картофельное пюре | C60: 150 | D60: 3.1 | E60: 5.3 | F60: 19.8 | G60: 139.4 | H60: 0.12 | I60: 0.11 | J60: 23.8 | K60: 0.09 | L60: 10.2 | M60: 161.78 | N60: 624.83 | O60: 39.49 | P60: 28.23 | Q60: 84.47 | R60: 1.03 | S60: 28.46 | T60: 0.78 | U60: 42.79
A61: № рец. 290 | B61: Птица тушеная в соусе | C61: 50/50 | D61: 8.65 | E61: 6.67 | F61: 3.9 | G61: 145 | H61: 0.1 | I61: 0 | J61: 0 | K61: 0 | L61: 1.5 | M61: 0 | N61: 0 | O61: 26.4 | P61: 16.6 | Q61: 115.3 | R61: 0.9 | S61: 0 | T61: 0 | U61: 0
A62: № Т/к 438 | B62: Напиток яблочный | C62: 200 | D62: 0.1 | E62: 0.1 | F62: 13.9 | G62: 57.8 | H62: 0 | I62: 0 | J62: 0 | K62: 0 | L62: 1 | M62: 0 | N62: 0 | O62: 12.3 | P62: 3.7 | Q62: 2.4 | R62: 0.5 | S62: 0 | T62: 0 | U62: 0
A63: Пром. | B63: Хлеб ржаной | C63: 20 | D63: 1.3 | E63: 0.2 | F63: 6.7 | G63: 34.2 | H63: 0.04 | I63: 0.02 | J63: 0 | K63: 0 | L63: 0 | M63: 122 | N63: 49 | O63: 7 | P63: 9.4 | Q63: 31.6 | R63: 0.78 | S63: 0 | T63: 6.18 | U63: 0
A64: Пром. | B64: Хлеб пшеничный | C64: 20 | D64: 1.52 | E64: 0.16 | F64: 9.84 | G64: 46.9 | H64: 0.02 | I64: 0.01 | J64: 0 | K64: 0 | L64: 0 | M64: 100 | N64: 19 | O64: 4 | P64: 3 | Q64: 13 | R64: 0.2 | S64: 0.64 | T64: 1.2 | U64: 2.9
A65: Пром. | B65: Банан | C65: 250 | D65: 3.75 | E65: 1.2 | F65: 26 | G65: 91.6 | H65: 0.07 | I65: 0.1 | J65: 30 | K65: 0 | L65: 10 | M65: 59 | N65: 722 | O65: 18 | P65: 91 | Q65: 61 | R65: 1.3 | S65: 0.12 | T65: 2.2 | U65: 5.5
B66: Итого за Завтрак | C66: 800 | D66: =SUM(D59:D65) -> 19.22 | E66: 19.73 | F66: 83.74 | G66: 587.4 | H66: 0.37 | I66: 0.26 | J66: 295.43 | K66: 0.09 | L66: 40.02 | M66: 530.29 | N66: 1574.97 | O66: 130.69 | P66: 163.1 | Q66: 326.57 | R66: 5.27 | S66: 39.09 | T66: 10.51 | U66: 62.17
B67: Итого за день | C67: =C66 -> 800 | D67: 19.22 | E67: 19.73 | F67: 83.74 | G67: 587.4 | H67: 0.37 | I67: 0.26 | J67: 295.43 | K67: 0.09 | L67: 40.02 | M67: 530.29 | N67: 1574.97 | O67: 130.69 | P67: 163.1 | Q67: 326.57 | R67: 5.27 | S67: 39.09 | T67: 10.51 | U67: 62.17
A69: 5 день, 1 неделя
A70: № рецептуры | B70: Прием пищи, наименование блюда | C70: Масса | D70: Пищевые вещества | G70: Энергетическая ценность | H70: Витамины | M70: Минеральные вещества
D71: Белки | E71: Жиры | F71: Углеводы | H71: B1 | I71: B2 | J71: A | K71: D | L71: C | M71: Na | N71: K | O71: Ca | P71: Mg | Q71: P | R71: Fe | S71: I | T71: Se | U71: F
C72: г | D72: г | E72: г | F72: г | G72: ккал | H72: мг | I72: мг | J72: мкг рет.экв | K72: мкг | L72: мг | M72: мг | N72: мг | O72: мг | P72: мг | Q72: мг | R72: мг | S72: мкг | T72: мкг | U72: мкг
B73: Пятница, 1 неделя
B74: Горячий завтрак | C74: 7-10
A75: 54-11з-2020 | B75: Салат из моркови с яблоками с растительным маслом | C75: 60 | D75: 0.5 | E75: 6.1 | F75: 4.3 | G75: 74.3 | H75: 0.03 | I75: 0.03 | J75: 732.9 | K75: 0 | L75: 3.63 | M75: 89.79 | N75: 123.26 | O75: 13.5 | P75: 15.57 | Q75: 22.38 | R75: 0.66 | S75: 10.19 | T75: 0.09 | U75: 21.57
A76: 54-6г-2020 | B76: Плов из говядины | C76: 160/40 | D76: 11.7 | E76: 9.35 | F76: 26.58 | G76: 234 | H76: 0.07 | I76: 0.12 | J76: 261.6 | K76: 0.1 | L76: 0.08 | M76: 276 | N76: 267 | O76: 117 | P76: 44 | Q76: 194 | R76: 2.2 | S76: 38.67 | T76: 7.3 | U76: 81.72
A77: 54-4гн-2020 | B77: Компот из кураги | C77: 200 | D77: 0.98 | E77: 0.05 | F77: 15.64 | G77: 66.9 | H77: 0.01 | I77: 0.03 | J77: 69.96 | K77: 0 | L77: 0 | M77: 3 | N77: 285 | O77: 90 | P77: 18 | Q77: 25 | R77: 0.6 | S77: 0 | T77: 0 | U77: 0
A78: Пром. | B78: Хлеб ржаной | C78: 20 | D78: 1.3 | E78: 0.2 | F78: 6.7 | G78: 34.2 | H78: 0.04 | I78: 0.02 | J78: 0 | K78: 0 | L78: 0 | M78: 122 | N78: 49 | O78: 7 | P78: 9.4 | Q78: 31.6 | R78: 0.78 | S78: 0 | T78: 6.18 | U78: 0
A79: Пром. | B79: Булочка ванильная | C79: 60 | D79: 4.68 | E79: 4.03 | F79: 30.46 | G79: 177 | H79: 0.05 | I79: 0.02 | J79: 19.12 | K79: 0.15 | L79: 0 | M79: 241 | N79: 50 | O79: 18 | P79: 6 | Q79: 41 | R79: 0.5 | S79: 33.36 | T79: 3.1 | U79: 11.03
B80: Итого за Завтрак | C80: 540 | D80: =SUM(D75:D79) -> 19.16 | E80: 19.73 | F80: 83.68 | G80: 586.4 | H80: 0.2 | I80: 0.22 | J80: 1083.58 | K80: 0.25 | L80: 3.71 | M80: 731.79 | N80: 774.26 | O80: 245.5 | P80: 92.97 | Q80: 313.98 | R80: 4.74 | S80: 82.22 | T80: 16.67 | U80: 114.32
B81: Итого за день | C81: =C80 -> 540 | D81: =D80 -> 19.16 | E81: =E80 -> 19.73 | F81: 83.68 | G81: 586.4 | H81: 0.2 | I81: 0.22 | J81: 1083.58 | K81: 0.25 | L81: 3.71 | M81: 731.79 | N81: 774.26 | O81: 245.5 | P81: 92.97 | Q81: 313.98 | R81: 4.74 | S81: 82.22 | T81: 16.67 | U81: 114.32
A83: 6 день, 1 неделя
A84: № рецептуры | B84: Прием пищи, наименование блюда | C84: Масса | D84: Пищевые вещества | G84: Энергетическая ценность | H84: Витамины | M84: Минеральные вещества
D85: Белки | E85: Жиры | F85: Углеводы | H85: B1 | I85: B2 | J85: A | K85: D | L85: C | M85: Na | N85: K | O85: Ca | P85: Mg | Q85: P | R85: Fe | S85: I | T85: Se | U85: F
C86: г | D86: г | E86: г | F86: г | G86: ккал | H86: мг | I86: мг | J86: мкг рет.экв | K86: мкг | L86: мг | M86: мг | N86: мг | O86: мг | P86: мг | Q86: мг | R86: мг | S86: мкг | T86: мкг | U86: мкг
B87: Суббота, 1 неделя
B88: Горячий завтрак | C88: 7-10
A89: 54-16з-2020 | B89: Винегрет с растительным маслом | C89: 60 | D89: 0.7 | E89: 5.4 | F89: 4 | G89: 67.1 | H89: 0.02 | I89: 0.02 | J89: 72.89 | K89: 0 | L89: 2.26 | M89: 200.99 | N89: 127.85 | O89: 12.1 | P89: 9.66 | Q89: 21.4 | R89: 0.41 | S89: 7.86 | T89: 0.13 | U89: 11.85
A90: 54-1т-2020 | B90: Запеканка из творога | C90: 150 | D90: 10.38 | E90: 9.38 | F90: 29.25 | G90: 287.3 | H90: 0.06 | I90: 0.3 | J90: 51.11 | K90: 0.16 | L90: 0 | M90: 181 | N90: 159 | O90: 223 | P90: 32 | Q90: 291 | R90: 0.8 | S90: 28.82 | T90: 39 | U90: 49.63
A91: Пром. | B91: Молоко сгущенное с сахаром | C91: 20 | D91: 1.44 | E91: 1.7 | F91: 11.1 | G91: 65.5 | H91: 0.01 | I91: 0.06 | J91: 5.64 | K91: 0 | L91: 0 | M91: 20 | N91: 61 | O91: 54 | P91: 6 | Q91: 38 | R91: 0 | S91: 1.4 | T91: 0.5 | U91: 7
A92: 54-23гн-2020 | B92: Кофейный напиток с молоком | C92: 200 | D92: 3.9 | E92: 2.9 | F92: 11.2 | G92: 86 | H92: 0.03 | I92: 0.13 | J92: 13.29 | K92: 0 | L92: 0.52 | M92: 38.55 | N92: 183.98 | O92: 148.32 | P92: 30.67 | Q92: 106.79 | R92: 1.06 | S92: 9 | T92: 1.76 | U92: 20
A93: Пром. | B93: Хлеб пшеничный | C93: 20 | D93: 1.52 | E93: 0.16 | F93: 9.84 | G93: 46.9 | H93: 0.02 | I93: 0.01 | J93: 0 | K93: 0 | L93: 0 | M93: 100 | N93: 19 | O93: 4 | P93: 3 | Q93: 13 | R93: 0.2 | S93: 0.64 | T93: 1.2 | U93: 2.9
A94: Пром. | B94: Хлеб ржаной | C94: 20 | D94: 1.3 | E94: 0.2 | F94: 6.7 | G94: 34.2 | H94: 0.04 | I94: 0.02 | J94: 0 | K94: 0 | L94: 0 | M94: 122 | N94: 49 | O94: 7 | P94: 9.4 | Q94: 31.6 | R94: 0.78 | S94: 0 | T94: 6.18 | U94: 0
B95: Итого за Завтрак | C95: =SUM(C89:C94) -> 470 | D95: =SUM(D89:D94) -> 19.24 | E95: =SUM(E89:E94) -> 19.74 | F95: 72.09 | G95: 587 | H95: 0.18 | I95: 0.54 | J95: 142.93 | K95: 0.16 | L95: 2.78 | M95: 662.54 | N95: 599.83 | O95: 448.42 | P95: 90.73 | Q95: 501.79 | R95: 3.25 | S95: 47.72 | T95: 48.77 | U95: 91.38
B96: Итого за день | C96: =C95 -> 470 | D96: =D95 -> 19.24 | E96: =E95 -> 19.74 | F96: 72.09 | G96: 587 | H96: 0.18 | I96: 0.54 | J96: 142.93 | K96: 0.16 | L96: 2.78 | M96: 662.54 | N96: 599.83 | O96: 448.42 | P96: 90.73 | Q96: 501.79 | R96: 3.25 | S96: 47.72 | T96: 48.77 | U96: 91.38
A98: 7 день, 2 неделя
A99: № рецептуры | B99: Прием пищи, наименование блюда | C99: Масса | D99: Пищевые вещества | G99: Энергетическая ценность | H99: Витамины | M99: Минеральные вещества
D100: Белки | E100: Жиры | F100: Углеводы | H100: B1 | I100: B2 | J100: A | K100: D | L100: C | M100: Na | N100: K | O100: Ca | P100: Mg | Q100: P | R100: Fe | S100: I | T100: Se | U100: F
C101: г | D101: г | E101: г | F101: г | G101: ккал | H101: мг | I101: мг | J101: мкг рет.экв | K101: мкг | L101: мг | M101: мг | N101: мг | O101: мг | P101: мг | Q101: мг | R101: мг | S101: мкг | T101: мкг | U101: мкг
B102: Понедельник, 2 неделя
B103: Горячий завтрак | C103: 7-10
A104: №Т/К 41 | B104: Салат из моркови с сахаром и растительным маслом | C104: 60 | D104: 0.5 | E104: 0 | F104: 4.3 | G104: 74.3 | H104: 0.03 | I104: 0.03 | J104: 732.9 | K104: 0 | L104: 3.63 | M104: 89.79 | N104: 123.26 | O104: 13.5 | P104: 15.57 | Q104: 22.38 | R104: 0.66 | S104: 10.19 | T104: 0.09 | U104: 21.57
A105: 62 | B105: Борщ | C105: 200 | D105: 13 | E105: 13.9 | F105: 15.1 | G105: 127 | H105: 0.1 | I105: 0 | J105: 0.2 | K105: 0 | L105: 10.7 | M105: 0 | N105: 0 | O105: 43.5 | P105: 26.9 | Q105: 57.4 | R105: 1.4 | S105: 0 | T105: 0 | U105: 0
A106: 54-2гн-2020 | B106: Чай с сахаром | C106: 200 | D106: 0.2 | E106: 0 | F106: 6.4 | G106: 26.8 | H106: 0 | I106: 0.01 | J106: 0.3 | K106: 0 | L106: 0.04 | M106: 0.68 | N106: 20.76 | O106: 66.08 | P106: 3.83 | Q106: 7.18 | R106: 0.73 | S106: 0 | T106: 0 | U106: 0
A107: № Т/К 400 | B107: Блины фаршированные (вишня, клубника) П/Ф (70гр) 2 шт | C107: 140 | D107: 4.2 | E107: 5.6 | F107: 35 | G107: 210 | H107: 0.06 | I107: 0 | J107: 0 | K107: 0 | L107: 0 | M107: 0 | N107: 0 | O107: 32.44 | P107: 13.18 | Q107: 85 | R107: 1.44 | S107: 0 | T107: 0 | U107: 0
A108: Пром. | B108: Хлеб ржаной | C108: 20 | D108: 1.3 | E108: 0.2 | F108: 6.7 | G108: 34.2 | H108: 0.04 | I108: 0.02 | J108: 0 | K108: 0 | L108: 0 | M108: 122 | N108: 49 | O108: 7 | P108: 9.4 | Q108: 31.6 | R108: 0.78 | S108: 0 | T108: 6.18 | U108: 0
B109: Итого за Завтрак | C109: =SUM(C104:C108) -> 620 | D109: 19.2 | E109: 19.7 | F109: 67.5 | G109: 472.3 | H109: 0.23 | I109: 0.06 | J109: 733.4 | K109: 0 | L109: 14.37 | M109: 212.47 | N109: 193.02 | O109: 162.52 | P109: 68.88 | Q109: 203.56 | R109: 5.01 | S109: 10.19 | T109: 6.27 | U109: 21.57
B110: Итого за день | C110: =C109 -> 620 | D110: =D109 -> 19.2 | E110: 19.7 | F110: 67.5 | G110: 472.3 | H110: 0.23 | I110: 0.06 | J110: 733.4 | K110: 0 | L110: 14.37 | M110: 212.47 | N110: 193.02 | O110: 162.52 | P110: 68.88 | Q110: 203.56 | R110: 5.01 | S110: 10.19 | T110: 6.27 | U110: 21.57
A112: 8 день, 2 неделя
A113: № рецептуры | B113: Прием пищи, наименование блюда | C113: Масса | D113: Пищевые вещества | G113: Энергетическая ценность | H113: Витамины | M113: Минеральные вещества
D114: Белки | E114: Жиры | F114: Углеводы | H114: B1 | I114: B2 | J114: A | K114: D | L114: C | M114: Na | N114: K | O114: Ca | P114: Mg | Q114: P | R114: Fe | S114: I | T114: Se | U114: F
C115: г | D115: г | E115: г | F115: г | G115: ккал | H115: мг | I115: мг | J115: мкг рет.экв | K115: мкг | L115: мг | M115: мг | N115: мг | O115: мг | P115: мг | Q115: мг | R115: мг | S115: мкг | T115: мкг | U115: мкг
B116: Вторник, 2 неделя
B117: Горячий завтрак | C117: 7-10
A118: 54-13з-2020 | B118: Салат из свеклы отварной с растительным маслом | C118: 60 | D118: 0.8 | E118: 2.7 | F118: 4.6 | G118: 45.6 | H118: 0.01 | I118: 0.02 | J118: 0.68 | K118: 0 | L118: 2.28 | M118: 78.77 | N118: 136.27 | O118: 19.21 | P118: 10.95 | Q118: 21.51 | R118: 0.7 | S118: 11.99 | T118: 0.35 | U118: 11.4
A119: 54-12м-2020 | B119: Плов с курицей | C119: 150/50 | D119: 14.78 | E119: 15.98 | F119: 33.1 | G119: 273.2 | H119: 0.07 | I119: 0.06 | J119: 144.87 | K119: 0 | L119: 2.08 | M119: 272.9 | N119: 287.76 | O119: 72.64 | P119: 78.85 | Q119: 174.89 | R119: 1.53 | S119: 37.41 | T119: 19.63 | U119: 118.1
A120: 54-3гн-2020 | B120: Чай с лимоном и сахаром | C120: 207 | D120: 0.2 | E120: 0.1 | F120: 6.6 | G120: 27.9 | H120: 0 | I120: 0.01 | J120: 0.38 | K120: 0 | L120: 1.16 | M120: 1.26 | N120: 30.23 | O120: 67 | P120: 4.56 | Q120: 8.52 | R120: 0.77 | S120: 0.01 | T120: 0.02 | U120: 0.7
A121: Пром. | B121: Хлеб пшеничный | C121: 20 | D121: 1.52 | E121: 0.16 | F121: 9.84 | G121: 46.9 | H121: 0.02 | I121: 0.01 | J121: 0 | K121: 0 | L121: 0 | M121: 100 | N121: 19 | O121: 4 | P121: 3 | Q121: 13 | R121: 0.2 | S121: 0.64 | T121: 1.2 | U121: 2.9
A122: Пром. | B122: Хлеб ржаной | C122: 20 | D122: 1.3 | E122: 0.2 | F122: 6.7 | G122: 34.2 | H122: 0.04 | I122: 0.02 | J122: 0 | K122: 0 | L122: 0 | M122: 122 | N122: 49 | O122: 7 | P122: 9.4 | Q122: 31.6 | R122: 0.78 | S122: 0 | T122: 6.18 | U122: 0
A123: Пром. | B123: Яблоко | C123: 140 | D123: 0.6 | E123: 0.6 | F123: 14.7 | G123: 66.6 | H123: 0.04 | I123: 0.03 | J123: 7.5 | K123: 0 | L123: 15 | M123: 39 | N123: 417 | O123: 24 | P123: 14 | Q123: 17 | R123: 3.3 | S123: 3 | T123: 0.4 | U123: 12
B124: Итого за Завтрак | C124: 647 | D124: =SUM(D118:D123) -> 19.2 | E124: =SUM(E118:E123) -> 19.74 | F124: 75.54 | G124: 494.4 | H124: 0.18 | I124: 0.15 | J124: 153.43 | K124: 0 | L124: 20.52 | M124: 613.93 | N124: 939.26 | O124: 193.85 | P124: 120.76 | Q124: 266.52 | R124: 7.28 | S124: 53.05 | T124: 27.78 | U124: 145.1
B125: Итого за день | C125: =C124 -> 647 | D125: =D124 -> 19.2 | E125: =E124 -> 19.74 | F125: 75.54 | G125: 494.4 | H125: 0.18 | I125: 0.15 | J125: 153.43 | K125: 0 | L125: 20.52 | M125: 613.93 | N125: 939.26 | O125: 193.85 | P125: 120.76 | Q125: 266.52 | R125: 7.28 | S125: 53.05 | T125: 27.78 | U125: 145.1
A127: 9 день, 2 неделя
A128: № рецептуры | B128: Прием пищи, наименование блюда | C128: Масса | D128: Пищевые вещества | G128: Энергетическая ценность | H128: Витамины | M128: Минеральные вещества
D129: Белки | E129: Жиры | F129: Углеводы | H129: B1 | I129: B2 | J129: A | K129: D | L129: C | M129: Na | N129: K | O129: Ca | P129: Mg | Q129: P | R129: Fe | S129: I | T129: Se | U129: F
C130: г | D130: г | E130: г | F130: г | G130: ккал | H130: мг | I130: мг | J130: мкг рет.экв | K130: мкг | L130: мг | M130: мг | N130: мг | O130: мг | P130: мг | Q130: мг | R130: мг | S130: мкг | T130: мкг | U130: мкг
B131: Среда, 2 неделя
B132: Горячий завтрак | C132: 7-10
A133: 54-16з-2020 | B133: Винегрет с растительным маслом | C133: 60 | D133: 0.7 | E133: 5.4 | F133: 4 | G133: 67.1 | H133: 0.02 | I133: 0.02 | J133: 72.89 | K133: 0 | L133: 2.26 | M133: 200.99 | N133: 127.85 | O133: 12.1 | P133: 9.66 | Q133: 21.4 | R133: 0.41 | S133: 7.86 | T133: 0.13 | U133: 11.85
A134: 54-11г-2020 | B134: Картофельное пюре | C134: 150 | D134: 3.1 | E134: 5.3 | F134: 19.8 | G134: 139.4 | H134: 0.12 | I134: 0.11 | J134: 23.8 | K134: 0.09 | L134: 10.2 | M134: 161.78 | N134: 624.83 | O134: 39.49 | P134: 28.23 | Q134: 84.47 | R134: 1.03 | S134: 28.46 | T134: 0.78 | U134: 42.79
A135: 54-7р-2020 | B135: Рыба припущенная в молоко | C135: 70/30 | D135: 10.06 | E135: 7.52 | F135: 2.89 | G135: 131.6 | H135: 0.08 | I135: 0.11 | J135: 9.02 | K135: 0.16 | L135: 1 | M135: 111 | N135: 347 | O135: 68 | P135: 44 | Q135: 202 | R135: 0.7 | S135: 133.48 | T135: 11.9 | U135: 572.6
A136: №Т/К 436 | B136: Напиток апельсиновый | C136: 200 | D136: 0.2 | E136: 0 | F136: 13 | G136: 53.5 | H136: 0 | I136: 0 | J136: 0 | K136: 0 | L136: 4 | M136: 0 | N136: 0 | O136: 13.5 | P136: 3.8 | Q136: 3.5 | R136: 0.1 | S136: 0 | T136: 0 | U136: 0
A137: Пром. | B137: Булочка веснушка (хлебзавод) 50 гр | C137: 50 | D137: 3.85 | E137: 1.2 | F137: 26.7 | G137: 133 | H137: 0.06 | I137: 0.01 | J137: 0 | K137: 0 | L137: 0 | M137: 219 | N137: 49 | O137: 10 | P137: 7 | Q137: 34 | R137: 0.6 | S137: 0 | T137: 0 | U137: 0
A138: Пром. | B138: Хлеб ржаной | C138: 20 | D138: 1.3 | E138: 0.2 | F138: 6.7 | G138: 34.2 | H138: 0.04 | I138: 0.02 | J138: 0 | K138: 0 | L138: 0 | M138: 122 | N138: 49 | O138: 7 | P138: 9.4 | Q138: 31.6 | R138: 0.78 | S138: 0 | T138: 6.18 | U138: 0
B139: Итого за Завтрак | C139: =C133+C134+C136+C137+C138+100 -> 580 | D139: =D133+D134+D135+D136+D137+D138 -> 19.21 | E139: =E133+E134+E135+E136+E137+E138 -> 19.62 | F139: =F133+F134+F135+F136+F137+F138 -> 73.09 | G139: =G133+G134+G135+G136+G137+G138 -> 558.8 | H139: =H133+H134+H135+H136+H137+H138 -> 0.32 | I139: 0.27 | J139: 105.71 | K139: 0.25 | L139: 17.46 | M139: 814.77 | N139: 1197.68 | O139: 150.09 | P139: 102.09 | Q139: 376.97 | R139: 3.62 | S139: 169.8 | T139: 18.99 | U139: 627.24
B140: Итого за день | C140: =C139 -> 580 | D140: 19.21 | E140: 19.62 | F140: 73.09 | G140: 558.8 | H140: 0.32 | I140: =I139 -> 0.27 | J140: 105.71 | K140: 0.25 | L140: 17.46 | M140: 814.77 | N140: 1197.68 | O140: 150.09 | P140: 102.09 | Q140: 376.97 | R140: 3.62 | S140: 169.8 | T140: 18.99 | U140: 627.24
A142: 10 день, 2 неделя
A143: № рецептуры | B143: Прием пищи, наименование блюда | C143: Масса | D143: Пищевые вещества | G143: Энергетическая ценность | H143: Витамины | M143: Минеральные вещества
D144: Белки | E144: Жиры | F144: Углеводы | H144: B1 | I144: B2 | J144: A | K144: D | L144: C | M144: Na | N144: K | O144: Ca | P144: Mg | Q144: P | R144: Fe | S144: I | T144: Se | U144: F
C145: г | D145: г | E145: г | F145: г | G145: ккал | H145: мг | I145: мг | J145: мкг рет.экв | K145: мкг | L145: мг | M145: мг | N145: мг | O145: мг | P145: мг | Q145: мг | R145: мг | S145: мкг | T145: мкг | U145: мкг
B146: Четверг, 2 неделя
B147: Горячий завтрак | C147: 7-10
A148: 54-7з-2020 | B148: Салат из белокочанной капусты с растительным маслом | C148: 60 | D148: 1.5 | E148: 3.1 | F148: 6.2 | G148: 85.8 | H148: 0.03 | I148: 0.04 | J148: 122.25 | K148: 0 | L148: 34.78 | M148: 88.69 | N148: 247.73 | O148: 40.39 | P148: 15.18 | Q148: 30.31 | R148: 0.55 | S148: 10.73 | T148: 0.26 | U148: 12.66
A149: 54-4г-2020 | B149: Каша гречневая рассыпчатая | C149: 150 | D149: 3.2 | E149: 4.8 | F149: 35.9 | G149: 147.1 | H149: 0.21 | I149: 0.12 | J149: 19.19 | K149: 0.09 | L149: 0 | M149: 149.45 | N149: 219.36 | O149: 46.62 | P149: 120.16 | Q149: 180.99 | R149: 4.05 | S149: 22.28 | T149: 3.52 | U149: 16.06
A150: 54-2м-2020 | B150: Гуляш из говядины | C150: 60/40 | D150: 4.55 | E150: 6.54 | F150: 3.9 | G150: 130.8 | H150: 0.04 | I150: 0.12 | J150: 25.46 | K150: 0.07 | L150: 1 | M150: 122 | N150: 322 | O150: 55 | P150: 23 | Q150: 166 | R150: 2.5 | S150: 17.06 | T150: 0.4 | U150: 62.71
A151: 54-21гн-2020 | B151: Кофейный напиток с молоком | C151: 200 | D151: 3.9 | E151: 2.9 | F151: 11.2 | G151: 86 | H151: 0.03 | I151: 0.13 | J151: 13.29 | K151: 0 | L151: 0.52 | M151: 38.55 | N151: 183.98 | O151: 148.32 | P151: 30.67 | Q151: 106.79 | R151: 1.06 | S151: 9 | T151: 1.76 | U151: 20
A152: Пром. | B152: Хлеб пшеничный | C152: 20 | D152: 1.52 | E152: 0.16 | F152: 9.84 | G152: 46.9 | H152: 0.02 | I152: 0.01 | J152: 0 | K152: 0 | L152: 0 | M152: 100 | N152: 19 | O152: 4 | P152: 3 | Q152: 13 | R152: 0.2 | S152: 0.64 | T152: 1.2 | U152: 2.9
A153: Пром. | B153: Хлеб ржаной | C153: 20 | D153: 1.3 | E153: 0.2 | F153: 6.7 | G153: 34.2 | H153: 0.04 | I153: 0.02 | J153: 0 | K153: 0 | L153: 0 | M153: 122 | N153: 49 | O153: 7 | P153: 9.4 | Q153: 31.6 | R153: 0.78 | S153: 0 | T153: 6.18 | U153: 0
A154: 54-6о | B154: Яйцо вареное 1 шт | C154: 40 | D154: 3.28 | E154: 2.05 | F154: 0.25 | G154: 56.6 | H154: 0.02 | I154: 0.14 | J154: 62.4 | K154: 0.88 | L154: 0 | M154: 41 | N154: 46 | O154: 19 | P154: 4 | Q154: 67 | R154: 0.9 | S154: 8 | T154: 10.8 | U154: 22
B155: Итого за Завтрак | C155: 590 | D155: =SUM(D148:D154) -> 19.25 | E155: =SUM(E148:E154) -> 19.75 | F155: 73.99 | G155: 587.4 | H155: 0.39 | I155: 0.58 | J155: 242.59 | K155: 1.04 | L155: 36.3 | M155: 661.69 | N155: 1087.07 | O155: 320.33 | P155: 205.41 | Q155: 595.69 | R155: 10.04 | S155: 67.71 | T155: 24.12 | U155: 136.33
B156: Итого за день | C156: =C155 -> 590 | D156: =D155 -> 19.25 | E156: 19.75 | F156: 73.99 | G156: 587.4 | H156: 0.39 | I156: 0.58 | J156: 242.59 | K156: 1.04 | L156: 36.3 | M156: 661.69 | N156: 1087.07 | O156: 320.33 | P156: 205.41 | Q156: 595.69 | R156: 10.04 | S156: 67.71 | T156: 24.12 | U156: 136.33
A158: 11 день, 2 неделя
A159: № рецептуры | B159: Прием пищи, наименование блюда | C159: Масса | D159: Пищевые вещества | G159: Энергетическая ценность | H159: Витамины | M159: Минеральные вещества
D160: Белки | E160: Жиры | F160: Углеводы | H160: B1 | I160: B2 | J160: A | K160: D | L160: C | M160: Na | N160: K | O160: Ca | P160: Mg | Q160: P | R160: Fe | S160: I | T160: Se | U160: F
C161: г | D161: г | E161: г | F161: г | G161: ккал | H161: мг | I161: мг | J161: мкг рет.экв | K161: мкг | L161: мг | M161: мг | N161: мг | O161: мг | P161: мг | Q161: мг | R161: мг | S161: мкг | T161: мкг | U161: мкг
B162: Пятница, 2 неделя
B163: Горячий завтрак | C163: 7-10
A164: 54-13з-2020 | B164: Салат из свеклы отварной с растительным маслом | C164: 60 | D164: 0.8 | E164: 2.7 | F164: 4.6 | G164: 45.6 | H164: 0.01 | I164: 0.02 | J164: 0.68 | K164: 0 | L164: 2.28 | M164: 78.77 | N164: 136.27 | O164: 19.21 | P164: 10.95 | Q164: 21.51 | R164: 0.7 | S164: 11.99 | T164: 0.35 | U164: 11.4
A165: 54-1г-2020 | B165: Макароны отварные | C165: 150 | D165: 5.3 | E165: 4.9 | F165: 32.8 | G165: 196.8 | H165: 0.06 | I165: 0.02 | J165: 18.36 | K165: 0.09 | L165: 0 | M165: 149.04 | N165: 53.8 | O165: 105.83 | P165: 7.19 | Q165: 40.7 | R165: 0.73 | S165: 20.77 | T165: 0.06 | U165: 11.92
A166: ном.рец №174 | B166: Тефтели мясные из говядины, полуфабрикат в соусе | C166: 75/30 | D166: 9.31 | E166: 11.7 | F166: 8.42 | G166: 168.9 | H166: 0 | I166: 0 | J166: 38.45 | K166: 0.01 | L166: 1.79 | M166: 3 | N166: 43 | O166: 45.75 | P166: 35.13 | Q166: 109 | R166: 1.6 | S166: 0 | T166: 0 | U166: 0
A167: 54-4гн-2020 | B167: Компот из кураги | C167: 200 | D167: 0.98 | E167: 0.05 | F167: 15.64 | G167: 66.9 | H167: 0.01 | I167: 0.03 | J167: 69.96 | K167: 0 | L167: 0 | M167: 3 | N167: 285 | O167: 90 | P167: 18 | Q167: 25 | R167: 0.6 | S167: 0 | T167: 0 | U167: 0
A168: Пром. | B168: Хлеб ржаной | C168: 20 | D168: 1.3 | E168: 0.2 | F168: 6.7 | G168: 34.2 | H168: 0.04 | I168: 0.02 | J168: 0 | K168: 0 | L168: 0 | M168: 122 | N168: 49 | O168: 7 | P168: 9.4 | Q168: 31.6 | R168: 0.78 | S168: 0 | T168: 6.18 | U168: 0
A169: Пром. | B169: Хлеб пшеничный | C169: 20 | D169: 1.52 | E169: 0.16 | F169: 9.84 | G169: 46.9 | H169: 0.02 | I169: 0.01 | J169: 0 | K169: 0 | L169: 0 | M169: 100 | N169: 19 | O169: 4 | P169: 3 | Q169: 13 | R169: 0.2 | S169: 0.64 | T169: 1.2 | U169: 2.9
B170: Итого за Завтрак | C170: 555 | D170: =SUM(D164:D169) -> 19.21 | E170: 19.71 | F170: 78 | G170: 559.3 | H170: 0.14 | I170: 0.1 | J170: 127.45 | K170: 0.1 | L170: 4.07 | M170: 455.81 | N170: 586.07 | O170: 271.79 | P170: 83.67 | Q170: 240.81 | R170: 4.61 | S170: 33.4 | T170: 7.79 | U170: 26.22
B171: Итого за день | C171: =C170 -> 555 | D171: =D170 -> 19.21 | E171: 19.71 | F171: 78 | G171: 559.3 | H171: 0.14 | I171: 0.1 | J171: 127.45 | K171: 0.1 | L171: 4.07 | M171: 455.81 | N171: 586.07 | O171: 271.79 | P171: 83.67 | Q171: 240.81 | R171: 4.61 | S171: 33.4 | T171: 7.79 | U171: 26.22
A173: 12 день, 2 неделя
A174: № рецептуры | B174: Прием пищи, наименование блюда | C174: Масса | D174: Пищевые вещества | G174: Энергетическая ценность | H174: Витамины | M174: Минеральные вещества
D175: Белки | E175: Жиры | F175: Углеводы | H175: B1 | I175: B2 | J175: A | K175: D | L175: C | M175: Na | N175: K | O175: Ca | P175: Mg | Q175: P | R175: Fe | S175: I | T175: Se | U175: F
C176: г | D176: г | E176: г | F176: г | G176: ккал | H176: мг | I176: мг | J176: мкг рет.экв | K176: мкг | L176: мг | M176: мг | N176: мг | O176: мг | P176: мг | Q176: мг | R176: мг | S176: мкг | T176: мкг | U176: мкг
B177: Суббота, 2 неделя
B178: Горячий завтрак | C178: 7-10
A179: 54-9з-2020 | B179: Салат из белокочанной капусты с морковью, яблоками и растительным маслом | C179: 60 | D179: 0.8 | E179: 6.1 | F179: 3.6 | G179: 72.5 | H179: 0.02 | I179: 0.02 | J179: 241.63 | K179: 0 | L179: 17.32 | M179: 87.51 | N179: 160.14 | O179: 23.5 | P179: 11.17 | Q179: 18.8 | R179: 0.56 | S179: 9.87 | T179: 0.15 | U179: 10.98
A180: 54-1т-2020 | B180: Запеканка из творога | C180: 150 | D180: 10.38 | E180: 9.38 | F180: 29.25 | G180: 287.3 | H180: 0.06 | I180: 0.3 | J180: 51.11 | K180: 0.16 | L180: 0 | M180: 181 | N180: 159 | O180: 223 | P180: 32 | Q180: 291 | R180: 0.8 | S180: 28.82 | T180: 39 | U180: 49.63
A181: Пром. | B181: Молоко сгущенное с сахаром | C181: 20 | D181: 1.44 | E181: 1.7 | F181: 11.1 | G181: 65.5 | H181: 0.01 | I181: 0.06 | J181: 5.64 | K181: 0 | L181: 0 | M181: 20 | N181: 61 | O181: 54 | P181: 6 | Q181: 38 | R181: 0 | S181: 1.4 | T181: 0.5 | U181: 7
A182: 54-3гн-2020 | B182: Чай с лимоном и сахаром | C182: 207 | D182: 0.2 | E182: 0.1 | F182: 6.6 | G182: 27.9 | H182: 0 | I182: 0.01 | J182: 0.38 | K182: 0 | L182: 1.16 | M182: 1.26 | N182: 30.23 | O182: 67 | P182: 4.56 | Q182: 8.52 | R182: 0.77 | S182: 0.01 | T182: 0.02 | U182: 0.7
A183: Пром. | B183: Хлеб ржаной | C183: 20 | D183: 1.3 | E183: 0.2 | F183: 6.7 | G183: 34.2 | H183: 0.04 | I183: 0.02 | J183: 0 | K183: 0 | L183: 0 | M183: 122 | N183: 49 | O183: 7 | P183: 9.4 | Q183: 31.6 | R183: 0.78 | S183: 0 | T183: 6.18 | U183: 0
A184: Пром. | B184: Хлеб пшеничный | C184: 20 | D184: 1.52 | E184: 0.16 | F184: 9.84 | G184: 46.9 | H184: 0.02 | I184: 0.01 | J184: 0 | K184: 0 | L184: 0 | M184: 100 | N184: 19 | O184: 4 | P184: 3 | Q184: 13 | R184: 0.2 | S184: 0.64 | T184: 1.2 | U184: 2.9
B185: Итого за Завтрак | C185: =SUM(C179:C184) -> 477 | D185: =SUM(D179:D184) -> 15.64 | E185: =SUM(E179:E184) -> 17.64 | F185: 67.09 | G185: 534.3 | H185: 0.15 | I185: 0.42 | J185: 298.76 | K185: 0.16 | L185: 18.48 | M185: 511.77 | N185: 478.37 | O185: 378.5 | P185: 66.13 | Q185: 400.92 | R185: 3.11 | S185: 40.74 | T185: 47.05 | U185: 71.21
B186: Итого за день | C186: =C185 -> 477 | D186: =D185 -> 15.64 | E186: =E185 -> 17.64 | F186: 67.09 | G186: 534.3 | H186: 0.15 | I186: 0.42 | J186: 298.76 | K186: 0.16 | L186: 18.48 | M186: 511.77 | N186: 478.37 | O186: 378.5 | P186: 66.13 | Q186: 400.92 | R186: 3.11 | S186: 40.74 | T186: 47.05 | U186: 71.21
D188: ИТОГО ПО МЕНЮ
B190: ИТОГО | C190: Пищевые вещества | F190: Энергетическая ценность | G190: Витамины | L190: Минеральные вещества
C191: Белки | D191: Жиры | E191: Углеводы | G191: B1 | H191: B2 | I191: A | J191: D | K191: C | L191: Na | M191: K | N191: Ca | O191: Mg | P191: P | Q191: Fe | R191: I | S191: Se | T191: F
C192: г | D192: г | E192: г | F192: ккал | G192: мг | H192: мг | I192: мкг рет.экв | J192: мкг | K192: мг | L192: мг | M192: мг | N192: мг | O192: мг | P192: мг | Q192: мг | R192: мкг | S192: мкг | T192: мкг
B193: Итого за весь период | C193: =D20+D35+D51+D67+D81+D96+D110+D125+D140+D156+D171+D186 -> 226.25 | D193: 234.37 | E193: 899.9 | F193: 6651.95 | G193: 2.75 | H193: 2.93 | I193: 4106.89 | J193: 2.38 | K193: 210.96 | L193: 6433.09 | M193: 8345.72 | N193: 3158.69 | O193: 1218.49 | P193: 4042.42 | Q193: 60.05 | R193: 624.15 | S193: 239.69 | T193: 1396.78
B194: Среднее значение | C194: =C193/12 -> 18.85 | D194: =D193/12 -> 19.53 | E194: 74.99166667 | F194: =F193/12 -> 554.3291667 | G194: 0.23 | H194: 0.24 | I194: 342.2408333 | J194: 0.20 | K194: 17.58 | L194: 536.0908333 | M194: 695.4766667 | N194: 263.2241667 | O194: 101.5408333 | P194: 336.8683333 | Q194: 5.00 | R194: 52.0125 | S194: 19.97416667 | T194: 116.3983333
B195: Содержание белков, жиров, углеводов в меню за период в % от калорийности | C195: 14.18 | D195: =D193*9/F193*100 -> 31.71 | E195: =E193*4*100/F193 -> 54.11
C197: СУММАРНЫЕ ОБЪЕМЫ БЛЮД ПО ПРИЕМАМ ПИЩИ (В ГРАММАХ)
B199: Возраст детей | C199: Горячий завтрак
B200: 7-10 лет | C200: =(C186+C171+C156+C140+C125+C110+C96+C81+C67+C51+C35+C20)/12 -> 585
B202: Овощи для салатов (морковь, лук, капуста, картофель) урожай 2022 года
